[Event "*** Titled Tuesday Blitz"]
[Site "Chess.com"]
[Date "2021.03.09"]
[Round "5"]
[White "AldokhinIvan"]
[Black "RobertoJBM"]
[Result "0-1"]
[WhiteElo "2521"]
[BlackElo "2719"]
[TimeControl "180+1"]
[EndTime "10:58:40 PST"]
[Termination "RobertoJBM won on time"]

1. e4 {[%clk 0:03:00.9]} 1... c6 {[%clk 0:03:00.2]} 2. Nc3 {[%clk 0:03:00.6]}
2... d5 {[%clk 0:03:01.1]} 3. d4 {[%clk 0:03:01.5]} 3... dxe4 {[%clk 0:03:00.9]}
4. Nxe4 {[%clk 0:03:02.4]} 4... Nd7 {[%clk 0:03:00.8]} 5. Qe2 {[%clk 0:03:02.1]}
5... Ndf6 {[%clk 0:02:55.3]} 6. Nf3 {[%clk 0:02:59.7]} 6... Bg4 {[%clk
0:02:51.4]} 7. c3 {[%clk 0:02:35.4]} 7... Nxe4 {[%clk 0:02:46.9]} 8. Qxe4 {[%clk
0:02:35.4]} 8... Nf6 {[%clk 0:02:47.5]} 9. Qe3 {[%clk 0:02:17]} 9... Bxf3 {[%clk
0:02:40.3]} 10. Qxf3 {[%clk 0:02:16.8]} 10... Qd5 {[%clk 0:02:41.2]} 11. Be2
{[%clk 0:01:51.5]} 11... Qxf3 {[%clk 0:02:40.2]} 12. Bxf3 {[%clk 0:01:51.5]}
12... e6 {[%clk 0:02:41.1]} 13. Bg5 {[%clk 0:01:49.9]} 13... Be7 {[%clk
0:02:40.8]} 14. Bxf6 {[%clk 0:01:47.7]} 14... Bxf6 {[%clk 0:02:39.6]} 15. O-O-O
{[%clk 0:01:48.3]} 15... O-O-O {[%clk 0:02:38.5]} 16. Kc2 {[%clk 0:01:47.8]}
16... h5 {[%clk 0:02:37.9]} 17. h3 {[%clk 0:01:45]} 17... g6 {[%clk 0:02:37.5]}
18. Rhe1 {[%clk 0:01:44.3]} 18... Kc7 {[%clk 0:02:36.7]} 19. b4 {[%clk
0:01:42.9]} 19... a5 {[%clk 0:02:35.2]} 20. a3 {[%clk 0:01:10.1]} 20... axb4
{[%clk 0:02:32.4]} 21. axb4 {[%clk 0:01:09.9]} 21... Ra8 {[%clk 0:02:32.7]} 22.
Ra1 {[%clk 0:01:00.5]} 22... Be7 {[%clk 0:02:23.4]} 23. Kb3 {[%clk 0:00:54.5]}
23... Bd6 {[%clk 0:02:22.8]} 24. c4 {[%clk 0:00:48.1]} 24... Rxa1 {[%clk
0:02:22]} 25. Rxa1 {[%clk 0:00:47.7]} 25... Rd8 {[%clk 0:02:22.9]} 26. Rd1
{[%clk 0:00:44]} 26... Be7 {[%clk 0:02:22.1]} 27. d5 {[%clk 0:00:31.7]} 27...
cxd5 {[%clk 0:02:22]} 28. cxd5 {[%clk 0:00:31.5]} 28... e5 {[%clk 0:02:22.6]}
29. d6+ {[%clk 0:00:27.5]} 29... Bxd6 {[%clk 0:02:16]} 30. Rc1+ {[%clk
0:00:27.7]} 30... Kb8 {[%clk 0:02:13.1]} 31. Bd5 {[%clk 0:00:27.8]} 31... Rd7
{[%clk 0:02:09.9]} 32. Rd1 {[%clk 0:00:25.6]} 32... Bc7 {[%clk 0:02:08.2]} 33.
Kc4 {[%clk 0:00:23.2]} 33... Bb6 {[%clk 0:02:07.3]} 34. f3 {[%clk 0:00:20.7]}
34... Bd4 {[%clk 0:02:06.7]} 35. Rd2 {[%clk 0:00:16.5]} 35... b5+ {[%clk
0:02:06.1]} 36. Kxb5 {[%clk 0:00:12.7]} 36... Rxd5+ {[%clk 0:02:07]} 37. Kc6
{[%clk 0:00:13.1]} 37... Rd8 {[%clk 0:02:07.1]} 38. b5 {[%clk 0:00:13.5]} 38...
f5 {[%clk 0:02:05.4]} 39. b6 {[%clk 0:00:11.8]} 39... e4 {[%clk 0:02:02.9]} 40.
fxe4 {[%clk 0:00:11.4]} 40... fxe4 {[%clk 0:02:03.8]} 41. b7 {[%clk 0:00:12.2]}
41... e3 {[%clk 0:02:02.2]} 42. Re2 {[%clk 0:00:08.7]} 42... Ba7 {[%clk
0:02:01.2]} 43. g4 {[%clk 0:00:08.4]} 43... h4 {[%clk 0:02:01]} 44. g5 {[%clk
0:00:07.9]} 44... Rd2 {[%clk 0:01:59.6]} 45. Re1 {[%clk 0:00:03.3]} 45... e2
{[%clk 0:01:56.4]} 46. Rd1 {[%clk 0:00:02.4]} 46... exd1=N {[%clk 0:00:51.6]}
0-1

[Event "*** Titled Tuesday Blitz"]
[Site "Chess.com"]
[Date "2021.03.09"]
[Round "5"]
[White "klimkoj"]
[Black "korkmaz16"]
[Result "1-0"]
[WhiteElo "2614"]
[BlackElo "2438"]
[TimeControl "180+1"]
[EndTime "10:58:40 PST"]
[Termination "klimkoj won by checkmate"]

1. d4 {[%clk 0:03:00.9]} 1... Nf6 {[%clk 0:02:59.6]} 2. c4 {[%clk 0:03:00.7]}
2... g6 {[%clk 0:02:59.4]} 3. Nc3 {[%clk 0:02:59.7]} 3... d5 {[%clk 0:02:59.9]}
4. cxd5 {[%clk 0:02:58.4]} 4... Nxd5 {[%clk 0:03:00.8]} 5. Nf3 {[%clk
0:02:56.6]} 5... Bg7 {[%clk 0:03:00]} 6. g3 {[%clk 0:02:56.4]} 6... O-O {[%clk
0:02:55]} 7. Bg2 {[%clk 0:02:56.2]} 7... c5 {[%clk 0:02:54.7]} 8. O-O {[%clk
0:02:51.1]} 8... cxd4 {[%clk 0:02:50.8]} 9. Nxd4 {[%clk 0:02:50.5]} 9... Nxc3
{[%clk 0:02:50.2]} 10. bxc3 {[%clk 0:02:51.4]} 10... a6 {[%clk 0:02:31.8]} 11.
Qb3 {[%clk 0:02:46.5]} 11... Qc7 {[%clk 0:02:28.2]} 12. Ba3 {[%clk 0:02:42.7]}
12... Re8 {[%clk 0:02:07.3]} 13. Rab1 {[%clk 0:02:33.7]} 13... e5 {[%clk
0:02:03.9]} 14. Nc2 {[%clk 0:02:32.9]} 14... Nc6 {[%clk 0:02:00.5]} 15. Bc5
{[%clk 0:02:27]} 15... Na5 {[%clk 0:01:53.8]} 16. Qb4 {[%clk 0:02:23.6]} 16...
Nc6 {[%clk 0:01:50.3]} 17. Qa3 {[%clk 0:02:21.8]} 17... Be6 {[%clk 0:01:24.1]}
18. Bd6 {[%clk 0:02:06.6]} 18... Qc8 {[%clk 0:01:18.7]} 19. Ne3 {[%clk
0:02:01.9]} 19... Ra7 {[%clk 0:00:54.5]} 20. Bc5 {[%clk 0:01:52.9]} 20... Ra8
{[%clk 0:00:51.6]} 21. Nd5 {[%clk 0:01:47.7]} 21... Bxd5 {[%clk 0:00:43.9]} 22.
Bxd5 {[%clk 0:01:44.7]} 22... Qd7 {[%clk 0:00:43.4]} 23. Rfd1 {[%clk 0:01:38.1]}
23... Rad8 {[%clk 0:00:31.4]} 24. Qb3 {[%clk 0:01:31.6]} 24... Bf8 {[%clk
0:00:21.4]} 25. Be3 {[%clk 0:01:22.9]} 25... Na5 {[%clk 0:00:18.7]} 26. Qb6
{[%clk 0:01:15.9]} 26... Qa4 {[%clk 0:00:19.1]} 27. Bxf7+ {[%clk 0:01:14]} 27...
Kxf7 {[%clk 0:00:18.7]} 28. Rxd8 {[%clk 0:01:14.9]} 28... Qxa2 {[%clk
0:00:15.6]} 29. Rbd1 {[%clk 0:01:09.3]} 29... Re6 {[%clk 0:00:12.7]} 30. Qc7+
{[%clk 0:01:06.7]} 30... Be7 {[%clk 0:00:12.9]} 31. Qd7 {[%clk 0:01:02.2]} 31...
Nc6 {[%clk 0:00:02.6]} 32. Qe8+ {[%clk 0:01:00.2]} 32... Kf6 {[%clk 0:00:03.2]}
33. Qh8+ {[%clk 0:00:57.8]} 33... Kf5 {[%clk 0:00:02.4]} 34. R8d2 {[%clk
0:00:52.6]} 34... Qc4 {[%clk 0:00:01.6]} 35. Qxh7 {[%clk 0:00:50.6]} 35... e4
{[%clk 0:00:02.1]} 36. Rd5+ {[%clk 0:00:49.2]} 36... Ne5 {[%clk 0:00:01.4]} 37.
h3 {[%clk 0:00:39.2]} 37... Kf6 {[%clk 0:00:01.8]} 38. Qh8+ {[%clk 0:00:34.9]}
38... Kf5 {[%clk 0:00:01.2]} 39. g4# {[%clk 0:00:34.7]} 1-0

[Event "*** Titled Tuesday Blitz"]
[Site "Chess.com"]
[Date "2021.03.09"]
[Round "5"]
[White "IngOscarArdila"]
[Black "Jan1401"]
[Result "0-1"]
[WhiteElo "2254"]
[BlackElo "2422"]
[TimeControl "180+1"]
[EndTime "10:58:40 PST"]
[Termination "Jan1401 won by resignation"]

1. d4 {[%clk 0:02:58.9]} 1... e6 {[%clk 0:03:00]} 2. c4 {[%clk 0:02:58.4]} 2...
Nf6 {[%clk 0:03:00.1]} 3. Nc3 {[%clk 0:02:58.8]} 3... Bb4 {[%clk 0:02:59.8]} 4.
Bd2 {[%clk 0:02:58.8]} 4... b6 {[%clk 0:02:54.8]} 5. Nf3 {[%clk 0:02:58.3]} 5...
Bb7 {[%clk 0:02:53.7]} 6. e3 {[%clk 0:02:58.8]} 6... Bxc3 {[%clk 0:02:49.2]} 7.
Bxc3 {[%clk 0:02:58.6]} 7... Ne4 {[%clk 0:02:49.5]} 8. Rc1 {[%clk 0:02:59.1]}
8... O-O {[%clk 0:02:48.8]} 9. Bd3 {[%clk 0:02:58.1]} 9... d6 {[%clk 0:02:46.6]}
10. O-O {[%clk 0:02:57.9]} 10... Nxc3 {[%clk 0:02:46.6]} 11. Rxc3 {[%clk
0:02:57.7]} 11... f5 {[%clk 0:02:44.9]} 12. b4 {[%clk 0:02:55.1]} 12... Nd7
{[%clk 0:02:42.6]} 13. c5 {[%clk 0:02:54.8]} 13... Bd5 {[%clk 0:02:38.1]} 14. a3
{[%clk 0:02:45.7]} 14... Nf6 {[%clk 0:02:33.5]} 15. Bc4 {[%clk 0:02:40.1]} 15...
Ne4 {[%clk 0:02:19.2]} 16. Rc1 {[%clk 0:02:39.1]} 16... Bxc4 {[%clk 0:02:10.1]}
17. Rxc4 {[%clk 0:02:36.3]} 17... b5 {[%clk 0:02:08.3]} 18. Rc2 {[%clk
0:02:29.7]} 18... a5 {[%clk 0:02:03.3]} 19. cxd6 {[%clk 0:02:22.7]} 19... cxd6
{[%clk 0:02:01.6]} 20. Qd3 {[%clk 0:02:21.7]} 20... axb4 {[%clk 0:01:57.4]} 21.
axb4 {[%clk 0:02:18.1]} 21... Qb6 {[%clk 0:01:56.6]} 22. Qb3 {[%clk 0:02:12.3]}
22... d5 {[%clk 0:01:51]} 23. Rfc1 {[%clk 0:02:10.6]} 23... Ra6 {[%clk
0:01:31.5]} 24. Ne5 {[%clk 0:02:07.2]} 24... Qa7 {[%clk 0:01:26.7]} 25. Qd3
{[%clk 0:02:02]} 25... Nd6 {[%clk 0:01:13.3]} 26. Rc5 {[%clk 0:01:34.6]} 26...
Ra1 {[%clk 0:01:03.2]} 27. Qf1 {[%clk 0:01:28.1]} 27... Ra8 {[%clk 0:00:58.1]}
28. h3 {[%clk 0:01:24]} 28... Qa4 {[%clk 0:00:45.6]} 29. Rxa1 {[%clk 0:01:09.8]}
29... Qxa1 {[%clk 0:00:44.7]} 30. Qxa1 {[%clk 0:00:59.7]} 30... Rxa1+ {[%clk
0:00:44.4]} 31. Kh2 {[%clk 0:01:00.5]} 31... h6 {[%clk 0:00:37.4]} 32. Rc6
{[%clk 0:00:59.5]} 32... Ne4 {[%clk 0:00:31.1]} 33. f3 {[%clk 0:00:56.9]} 33...
Nd2 {[%clk 0:00:31.3]} 34. Rxe6 {[%clk 0:00:54.5]} 34... Nf1+ {[%clk 0:00:30.5]}
35. Kg1 {[%clk 0:00:48.6]} 35... Nxe3+ {[%clk 0:00:30.3]} 36. Kf2 {[%clk
0:00:49]} 36... Nc2 {[%clk 0:00:29.2]} 37. Re8+ {[%clk 0:00:46.2]} 37... Kh7
{[%clk 0:00:28.7]} 38. Nc6 {[%clk 0:00:46.2]} 38... Ra6 {[%clk 0:00:24.3]} 39.
Rc8 {[%clk 0:00:39.2]} 39... f4 {[%clk 0:00:24.3]} 40. Ke2 {[%clk 0:00:39]}
40... Rxc6 {[%clk 0:00:24.3]} 41. Rd8 {[%clk 0:00:33.6]} 41... Nxd4+ {[%clk
0:00:24]} 42. Kd3 {[%clk 0:00:32.8]} 42... Nc2 {[%clk 0:00:24]} 43. Rxd5 {[%clk
0:00:31.9]} 43... Nxb4+ {[%clk 0:00:24.1]} 44. Ke4 {[%clk 0:00:32.5]} 44... Nxd5
{[%clk 0:00:24.2]} 45. Kxd5 {[%clk 0:00:33.4]} 45... Rc2 {[%clk 0:00:24.7]} 0-1

[Event "*** Titled Tuesday Blitz"]
[Site "Chess.com"]
[Date "2021.03.09"]
[Round "5"]
[White "ApoIogiA"]
[Black "yonaltimur"]
[Result "1-0"]
[WhiteElo "2194"]
[BlackElo "1809"]
[TimeControl "180+1"]
[EndTime "10:58:40 PST"]
[Termination "ApoIogiA won on time"]

1. d4 {[%clk 0:03:00.9]} 1... d5 {[%clk 0:02:59.1]} 2. c4 {[%clk 0:02:53.9]}
2... dxc4 {[%clk 0:02:56.9]} 3. Nc3 {[%clk 0:02:53.5]} 3... a6 {[%clk
0:02:48.9]} 4. a4 {[%clk 0:02:51.2]} 4... e6 {[%clk 0:02:31.4]} 5. e3 {[%clk
0:02:50.7]} 5... c5 {[%clk 0:02:28]} 6. Bxc4 {[%clk 0:02:49.5]} 6... cxd4 {[%clk
0:02:27.7]} 7. exd4 {[%clk 0:02:50.4]} 7... Nf6 {[%clk 0:02:27.9]} 8. Nf3 {[%clk
0:02:50.1]} 8... Bd6 {[%clk 0:02:28.3]} 9. O-O {[%clk 0:02:48.7]} 9... O-O
{[%clk 0:02:28]} 10. Bg5 {[%clk 0:02:48.8]} 10... Nbd7 {[%clk 0:02:16.1]} 11.
Qe2 {[%clk 0:02:45.2]} 11... h6 {[%clk 0:02:11.7]} 12. Bh4 {[%clk 0:02:44.2]}
12... b6 {[%clk 0:01:44.5]} 13. Rfe1 {[%clk 0:02:09.9]} 13... Bb7 {[%clk
0:01:38.9]} 14. Ne5 {[%clk 0:02:03.8]} 14... Qc7 {[%clk 0:01:22]} 15. Rac1
{[%clk 0:01:45.2]} 15... Rac8 {[%clk 0:00:44.4]} 16. Ba2 {[%clk 0:01:15.7]}
16... Qb8 {[%clk 0:00:34.6]} 17. Kh1 {[%clk 0:00:54.8]} 17... Qa8 {[%clk
0:00:15.1]} 18. f3 {[%clk 0:00:48.1]} 18... Qb8 {[%clk 0:00:14.2]} 19. Bb1
{[%clk 0:00:43.3]} 19... Qa8 {[%clk 0:00:10.3]} 20. Qd3 {[%clk 0:00:34]} 20...
g6 {[%clk 0:00:09.2]} 21. Qe3 {[%clk 0:00:31.7]} 21... Kg7 {[%clk 0:00:07.6]}
22. Rcd1 {[%clk 0:00:17.6]} 22... Nd5 {[%clk 0:00:06.9]} 23. Nxd5 {[%clk
0:00:17]} 23... Nxe5 {[%clk 0:00:06.1]} 24. dxe5 {[%clk 0:00:16.7]} 24... Bc5
{[%clk 0:00:05.7]} 25. Qe4 {[%clk 0:00:15.3]} 25... Bxd5 {[%clk 0:00:04.5]} 26.
Qd3 {[%clk 0:00:13.4]} 26... Rfe8 {[%clk 0:00:03.2]} 27. Bf6+ {[%clk 0:00:14]}
27... Kh7 {[%clk 0:00:03.2]} 28. Qd2 {[%clk 0:00:14.1]} 28... a5 {[%clk
0:00:01.9]} 29. Re4 {[%clk 0:00:14.2]} 29... Bb4 {[%clk 0:00:01.3]} 30. Qe3
{[%clk 0:00:12.8]} 30... Bxe4 {[%clk 0:00:01.2]} 31. Qxe4 {[%clk 0:00:13.3]} 1-0

[Event "*** Titled Tuesday Blitz"]
[Site "Chess.com"]
[Date "2021.03.09"]
[Round "5"]
[White "BvsN"]
[Black "NefeLV"]
[Result "1-0"]
[WhiteElo "2309"]
[BlackElo "1831"]
[TimeControl "180+1"]
[EndTime "10:58:46 PST"]
[Termination "BvsN won on time"]

1. c4 {[%clk 0:03:00.9]} 1... g6 {[%clk 0:02:58.9]} 2. e4 {[%clk 0:03:00.3]}
2... Bg7 {[%clk 0:02:59.8]} 3. d4 {[%clk 0:03:00.1]} 3... c5 {[%clk 0:02:58.6]}
4. d5 {[%clk 0:02:59.2]} 4... d6 {[%clk 0:02:59.1]} 5. Nc3 {[%clk 0:02:59.1]}
5... Nf6 {[%clk 0:02:56.7]} 6. Nge2 {[%clk 0:02:59.2]} 6... O-O {[%clk
0:02:56.3]} 7. f3 {[%clk 0:02:56.4]} 7... a6 {[%clk 0:02:52.5]} 8. a4 {[%clk
0:02:55.9]} 8... b6 {[%clk 0:02:52.1]} 9. Ng3 {[%clk 0:02:52.6]} 9... e6 {[%clk
0:02:51]} 10. Be2 {[%clk 0:02:52.5]} 10... e5 {[%clk 0:02:50.4]} 11. O-O {[%clk
0:02:50.7]} 11... Ne8 {[%clk 0:02:47.5]} 12. a5 {[%clk 0:02:42.6]} 12... f5
{[%clk 0:02:44.9]} 13. axb6 {[%clk 0:02:40.1]} 13... Qxb6 {[%clk 0:02:43.5]} 14.
Qc2 {[%clk 0:02:34.2]} 14... f4 {[%clk 0:02:41.9]} 15. Nh1 {[%clk 0:02:32.8]}
15... Nd7 {[%clk 0:02:30.3]} 16. Nf2 {[%clk 0:02:31.1]} 16... Ndf6 {[%clk
0:02:29.8]} 17. Na4 {[%clk 0:02:22.1]} 17... Qc7 {[%clk 0:02:26.9]} 18. Bd2
{[%clk 0:02:18.6]} 18... h6 {[%clk 0:02:19.5]} 19. b4 {[%clk 0:02:18.3]} 19...
cxb4 {[%clk 0:02:15.2]} 20. Bxb4 {[%clk 0:02:17.5]} 20... g5 {[%clk 0:02:03.1]}
21. c5 {[%clk 0:02:15.8]} 21... a5 {[%clk 0:01:52.4]} 22. Ba3 {[%clk 0:02:08.4]}
22... Ba6 {[%clk 0:01:49.8]} 23. Rfc1 {[%clk 0:01:56.2]} 23... Bxe2 {[%clk
0:01:30.1]} 24. Qxe2 {[%clk 0:01:55.8]} 24... dxc5 {[%clk 0:01:25.4]} 25. Nxc5
{[%clk 0:01:39.5]} 25... Rf7 {[%clk 0:01:09.2]} 26. Ne6 {[%clk 0:01:38.3]} 26...
Qd7 {[%clk 0:01:00.7]} 27. Rab1 {[%clk 0:01:29.5]} 27... h5 {[%clk 0:00:51]} 28.
Qb5 {[%clk 0:01:21.9]} 28... g4 {[%clk 0:00:41.7]} 29. Qxd7 {[%clk 0:01:21.6]}
29... Rxd7 {[%clk 0:00:39.2]} 30. Nd3 {[%clk 0:01:20]} 30... Nxd5 {[%clk
0:00:20.2]} 31. exd5 {[%clk 0:01:11.1]} 31... Rxd5 {[%clk 0:00:20]} 32. Ndc5
{[%clk 0:01:07.1]} 32... Bf8 {[%clk 0:00:17.1]} 33. Rd1 {[%clk 0:01:04.9]} 33...
Nf6 {[%clk 0:00:13.2]} 34. Nxf8 {[%clk 0:00:56.6]} 34... Kxf8 {[%clk 0:00:11.6]}
35. Ne4+ {[%clk 0:00:52.5]} 35... Kf7 {[%clk 0:00:10.8]} 36. Nxf6 {[%clk
0:00:50.1]} 36... Rxd1+ {[%clk 0:00:10]} 37. Rxd1 {[%clk 0:00:50.3]} 37... Kxf6
{[%clk 0:00:10.9]} 38. Kf2 {[%clk 0:00:39.8]} 38... Rc8 {[%clk 0:00:08.6]} 39.
Ke2 {[%clk 0:00:39.3]} 39... Rc2+ {[%clk 0:00:07.5]} 40. Rd2 {[%clk 0:00:39.6]}
40... Rc3 {[%clk 0:00:03]} 41. Bb2 {[%clk 0:00:38]} 41... Rb3 {[%clk 0:00:02.2]}
42. Ba1 {[%clk 0:00:27.6]} 1-0

[Event "*** Titled Tuesday Blitz"]
[Site "Chess.com"]
[Date "2021.03.09"]
[Round "5"]
[White "ehrenfeld"]
[Black "Agoking701"]
[Result "1-0"]
[WhiteElo "2514"]
[BlackElo "2355"]
[TimeControl "180+1"]
[EndTime "10:58:48 PST"]
[Termination "ehrenfeld won on time"]

1. e4 {[%clk 0:03:00.9]} 1... c6 {[%clk 0:02:14.4]} 2. d4 {[%clk 0:03:00]} 2...
d5 {[%clk 0:02:15.3]} 3. exd5 {[%clk 0:02:59.6]} 3... cxd5 {[%clk 0:02:16.2]} 4.
Bd3 {[%clk 0:02:59.7]} 4... Nc6 {[%clk 0:02:14.6]} 5. c3 {[%clk 0:02:59.7]} 5...
g6 {[%clk 0:02:11.9]} 6. Nf3 {[%clk 0:02:59]} 6... Bf5 {[%clk 0:02:11.7]} 7. O-O
{[%clk 0:02:59.1]} 7... e6 {[%clk 0:02:08.6]} 8. Re1 {[%clk 0:02:59]} 8... Bd6
{[%clk 0:02:01.5]} 9. Bf1 {[%clk 0:02:58.3]} 9... Nge7 {[%clk 0:01:58.2]} 10.
Bh6 {[%clk 0:02:49.4]} 10... Qc7 {[%clk 0:01:52.6]} 11. Nbd2 {[%clk 0:02:44.6]}
11... Bg4 {[%clk 0:01:52.2]} 12. Qa4 {[%clk 0:02:38]} 12... Nf5 {[%clk
0:01:48.8]} 13. Bg5 {[%clk 0:02:36.9]} 13... Bxf3 {[%clk 0:01:39.7]} 14. Nxf3
{[%clk 0:02:36]} 14... O-O {[%clk 0:01:39.5]} 15. Bd3 {[%clk 0:02:31.1]} 15...
Be7 {[%clk 0:01:29.8]} 16. Bxe7 {[%clk 0:02:15.9]} 16... Nfxe7 {[%clk
0:01:25.9]} 17. Qd1 {[%clk 0:02:14.5]} 17... Rab8 {[%clk 0:01:22.7]} 18. Qe2
{[%clk 0:02:14]} 18... Rfc8 {[%clk 0:01:15.5]} 19. h4 {[%clk 0:02:06.6]} 19...
Qf4 {[%clk 0:01:09.2]} 20. g3 {[%clk 0:02:06.3]} 20... Qg4 {[%clk 0:01:06]} 21.
Kg2 {[%clk 0:02:01.7]} 21... Nf5 {[%clk 0:00:59.2]} 22. Rh1 {[%clk 0:01:41.2]}
22... h5 {[%clk 0:00:50.8]} 23. Qd2 {[%clk 0:01:33]} 23... Kg7 {[%clk
0:00:28.6]} 24. Rh3 {[%clk 0:01:20.7]} 24... Nfxd4 {[%clk 0:00:07.6]} 25. Nh2
{[%clk 0:00:50.4]} 25... Nf3 {[%clk 0:00:05.3]} 26. Nxf3 {[%clk 0:00:47.6]}
26... e5 {[%clk 0:00:05.7]} 27. Be2 {[%clk 0:00:39.2]} 27... Qe6 {[%clk
0:00:04.3]} 28. Rhh1 {[%clk 0:00:35.4]} 28... Rd8 {[%clk 0:00:04]} 29. Rhe1
{[%clk 0:00:34.8]} 29... f5 {[%clk 0:00:03.6]} 30. Bb5 {[%clk 0:00:33.9]} 30...
e4 {[%clk 0:00:02.3]} 31. Nd4 {[%clk 0:00:33.9]} 31... Nxd4 {[%clk 0:00:01.4]}
32. Qxd4+ {[%clk 0:00:34]} 32... Qf6 {[%clk 0:00:01]} 33. Qxf6+ {[%clk
0:00:32.7]} 33... Kxf6 {[%clk 0:00:01.9]} 34. Rad1 {[%clk 0:00:32.5]} 34... a6
{[%clk 0:00:02.5]} 35. Bf1 {[%clk 0:00:31]} 35... Ke5 {[%clk 0:00:03.4]} 36. Rd4
{[%clk 0:00:30.4]} 36... Rbc8 {[%clk 0:00:02.9]} 37. Red1 {[%clk 0:00:30.6]}
37... b5 {[%clk 0:00:03.4]} 38. a3 {[%clk 0:00:29.8]} 38... Rc5 {[%clk 0:00:03]}
39. f3 {[%clk 0:00:29.2]} 39... Rd6 {[%clk 0:00:02]} 40. Kf2 {[%clk 0:00:28.9]}
1-0

[Event "*** Titled Tuesday Blitz"]
[Site "Chess.com"]
[Date "2021.03.09"]
[Round "5"]
[White "KetiGrant"]
[Black "starplatinum2030"]
[Result "0-1"]
[WhiteElo "2336"]
[BlackElo "2203"]
[TimeControl "180+1"]
[EndTime "10:58:48 PST"]
[Termination "starplatinum2030 won on time"]

1. e4 {[%clk 0:03:00.9]} 1... c5 {[%clk 0:02:59.1]} 2. Nf3 {[%clk 0:03:00.6]}
2... e6 {[%clk 0:02:59.4]} 3. d4 {[%clk 0:03:00.1]} 3... cxd4 {[%clk 0:03:00.3]}
4. Nxd4 {[%clk 0:03:00.5]} 4... Nc6 {[%clk 0:03:00.6]} 5. Nc3 {[%clk 0:03:00.1]}
5... Qc7 {[%clk 0:03:00.1]} 6. Be3 {[%clk 0:02:59.3]} 6... Nf6 {[%clk
0:02:56.8]} 7. Qd2 {[%clk 0:02:57.9]} 7... a6 {[%clk 0:02:56.7]} 8. O-O-O {[%clk
0:02:50.1]} 8... Bb4 {[%clk 0:02:55.8]} 9. f3 {[%clk 0:02:49]} 9... d5 {[%clk
0:02:55.5]} 10. a3 {[%clk 0:02:25.3]} 10... Bxc3 {[%clk 0:02:14.5]} 11. Qxc3
{[%clk 0:02:24]} 11... dxe4 {[%clk 0:02:14.7]} 12. Nxc6 {[%clk 0:02:19.4]} 12...
Qxc6 {[%clk 0:02:10.8]} 13. Qxc6+ {[%clk 0:02:03.2]} 13... bxc6 {[%clk
0:02:11.7]} 14. Bc5 {[%clk 0:02:03.7]} 14... exf3 {[%clk 0:02:03.5]} 15. gxf3
{[%clk 0:02:04.6]} 15... Nd7 {[%clk 0:01:55.8]} 16. Bd6 {[%clk 0:02:03.9]} 16...
Bb7 {[%clk 0:01:51.1]} 17. Rg1 {[%clk 0:01:54.5]} 17... g6 {[%clk 0:01:50.5]}
18. Bd3 {[%clk 0:01:41.8]} 18... O-O-O {[%clk 0:01:48.1]} 19. Be4 {[%clk
0:01:01.4]} 19... Nb6 {[%clk 0:01:35.4]} 20. Bc5 {[%clk 0:00:42.6]} 20... Kc7
{[%clk 0:01:20.2]} 21. b3 {[%clk 0:00:37.3]} 21... Nc8 {[%clk 0:01:18.1]} 22.
Bd4 {[%clk 0:00:32.9]} 22... Rhe8 {[%clk 0:01:09.9]} 23. Be5+ {[%clk 0:00:32]}
23... Kb6 {[%clk 0:01:07.8]} 24. c4 {[%clk 0:00:30.6]} 24... c5 {[%clk
0:01:02.5]} 25. b4 {[%clk 0:00:25.5]} 25... Bxe4 {[%clk 0:01:01.8]} 26. fxe4
{[%clk 0:00:26.4]} 26... Kc6 {[%clk 0:01:00.9]} 27. Kc2 {[%clk 0:00:19.3]} 27...
Nb6 {[%clk 0:00:56.1]} 28. Kb3 {[%clk 0:00:17.2]} 28... f5 {[%clk 0:00:53.6]}
29. Bc3 {[%clk 0:00:06.8]} 29... fxe4 {[%clk 0:00:39.9]} 30. Rxd8 {[%clk
0:00:05.7]} 30... Rxd8 {[%clk 0:00:39.4]} 31. Re1 {[%clk 0:00:06.6]} 31... Rd6
{[%clk 0:00:28.7]} 32. Rxe4 {[%clk 0:00:06.4]} 32... Nd7 {[%clk 0:00:28.7]} 33.
Rf4 {[%clk 0:00:01.9]} 33... e5 {[%clk 0:00:24]} 34. Rf7 {[%clk 0:00:01.5]}
34... h5 {[%clk 0:00:23.8]} 35. Re7 {[%clk 0:00:01.1]} 35... Rd3 {[%clk
0:00:19.4]} 0-1

[Event "*** Titled Tuesday Blitz"]
[Site "Chess.com"]
[Date "2021.03.09"]
[Round "5"]
[White "dozer80"]
[Black "CarrotsandPizza"]
[Result "1-0"]
[WhiteElo "2589"]
[BlackElo "2403"]
[TimeControl "180+1"]
[EndTime "10:58:49 PST"]
[Termination "dozer80 won by checkmate"]

1. e4 {[%clk 0:03:00.9]} 1... c5 {[%clk 0:02:57.7]} 2. Nf3 {[%clk 0:03:00.6]}
2... Qb6 {[%clk 0:02:58.1]} 3. Nc3 {[%clk 0:02:57.7]} 3... Nc6 {[%clk
0:02:57.1]} 4. g3 {[%clk 0:02:56.6]} 4... e6 {[%clk 0:02:56.5]} 5. Bg2 {[%clk
0:02:57.1]} 5... a6 {[%clk 0:02:56.8]} 6. O-O {[%clk 0:02:57.5]} 6... d6 {[%clk
0:02:57.4]} 7. b3 {[%clk 0:02:57.1]} 7... Nf6 {[%clk 0:02:56.3]} 8. Bb2 {[%clk
0:02:56.9]} 8... Be7 {[%clk 0:02:56.9]} 9. d4 {[%clk 0:02:46]} 9... cxd4 {[%clk
0:02:54.3]} 10. Na4 {[%clk 0:02:45.8]} 10... Qc7 {[%clk 0:02:52.7]} 11. Nxd4
{[%clk 0:02:46]} 11... Bd7 {[%clk 0:02:52.3]} 12. Nc3 {[%clk 0:02:31.7]} 12...
b5 {[%clk 0:02:51.3]} 13. Re1 {[%clk 0:02:31]} 13... Rc8 {[%clk 0:02:50.4]} 14.
a4 {[%clk 0:02:16.4]} 14... b4 {[%clk 0:02:48.4]} 15. Nce2 {[%clk 0:02:15.9]}
15... O-O {[%clk 0:02:39.5]} 16. Rc1 {[%clk 0:02:14.7]} 16... Rfd8 {[%clk
0:02:38]} 17. h3 {[%clk 0:02:04.4]} 17... Ne5 {[%clk 0:02:22.4]} 18. f4 {[%clk
0:01:57.2]} 18... Nc6 {[%clk 0:02:22.4]} 19. Kh2 {[%clk 0:01:56.5]} 19... d5
{[%clk 0:02:02]} 20. e5 {[%clk 0:01:45.9]} 20... Ne4 {[%clk 0:02:01.5]} 21. Nxc6
{[%clk 0:01:46.1]} 21... Bxc6 {[%clk 0:01:56.6]} 22. Nd4 {[%clk 0:01:46.4]}
22... Bb7 {[%clk 0:01:55.5]} 23. Qg4 {[%clk 0:01:22.1]} 23... g6 {[%clk
0:01:55.1]} 24. f5 {[%clk 0:00:52.7]} 24... exf5 {[%clk 0:01:34.3]} 25. Nxf5
{[%clk 0:00:52.3]} 25... Nc3 {[%clk 0:01:32.7]} 26. e6 {[%clk 0:00:49.7]} 26...
fxe6 {[%clk 0:01:06.3]} 27. Rxe6 {[%clk 0:00:48.4]} 27... Bf8 {[%clk 0:01:06]}
28. h4 {[%clk 0:00:45.2]} 28... Qf7 {[%clk 0:00:56.9]} 29. Rf1 {[%clk
0:00:41.7]} 29... Qd7 {[%clk 0:00:30.3]} 30. h5 {[%clk 0:00:37.6]} 30... Rc6
{[%clk 0:00:26.3]} 31. Rxc6 {[%clk 0:00:33.5]} 31... Qxc6 {[%clk 0:00:24.8]} 32.
Nd4 {[%clk 0:00:24.4]} 32... Qd7 {[%clk 0:00:19.9]} 33. Ne6 {[%clk 0:00:23.5]}
33... Re8 {[%clk 0:00:15.4]} 34. hxg6 {[%clk 0:00:16.3]} 34... Rxe6 {[%clk
0:00:15.6]} 35. gxh7+ {[%clk 0:00:16.5]} 35... Kxh7 {[%clk 0:00:15.7]} 36. Qf5+
{[%clk 0:00:14.8]} 36... Kh6 {[%clk 0:00:15.9]} 37. Qxf8+ {[%clk 0:00:14.7]}
37... Qg7 {[%clk 0:00:08]} 38. Bc1+ {[%clk 0:00:14.1]} 38... Kg6 {[%clk
0:00:08.3]} 39. Qf5# {[%clk 0:00:13.7]} 1-0